lending/lending_fUSD_20240504
["ID","MTS","AMOUNT","RATE_DAILY","PERIOD"]
[325384708,1714804269542,-151.0,0.00038,7]
[325384709,1714804269553,-2201.185585,0.00038,7]
[325384710,1714804269562,-151.0,0.00038,7]
[325384711,1714804269572,-2201.185585,0.00038,7]
[325384712,1714804269580,-3000.0,0.00038,2]
[325384713,1714804269593,-357.704333,0.00038,7]
[325384714,1714804269603,-357.704333,0.00038,7]
[325384715,1714804269613,-247.395308,0.00038,7]
[325384716,1714804269622,-736.838102,0.00038,7]
[325384717,1714804269632,-247.395308,0.00038,7]
[325384718,1714804269642,-291.887504,0.00038,7]
[325384719,1714804269651,-151.0,0.00038,7]
[325384720,1714804269660,-736.838102,0.00038,7]
[325384721,1714804269671,-291.887504,0.00038,7]
[325384722,1714804269680,-291.089466,0.00038,7]
[325384723,1714804269690,-291.089466,0.00038,7]
[325384724,1714804269701,-151.0,0.00038,7]
[325384725,1714804269712,-985.65007,0.00038,7]
[325384726,1714804269722,-985.65007,0.00038,7]
[325384727,1714804269733,-10000.0,0.00038,7]
[325384728,1714804269743,-900.819523,0.00038,7]
[325384729,1714804269753,-10000.0,0.00038,7]
[325384730,1714804269762,-900.819523,0.00038,7]
[325384731,1714804269772,-1308.60972,0.00038,7]
[325384732,1714804269781,-1308.60972,0.00038,7]
[325384733,1714804269791,-417.413404,0.00038,7]
[325384734,1714804269800,-304.530927,0.00038,7]
[325384735,1714804269809,-155.386923,0.00038,7]
[325384736,1714804269819,-417.413404,0.00038,7]
[325384737,1714804269829,-304.530927,0.00038,7]
[325384738,1714804269839,-926.894193,0.00038,7]
[325384739,1714804269849,-155.386923,0.00038,7]
[325384740,1714804269858,-926.894193,0.00038,7]
[325384741,1714804269868,-249.98956,0.00038,7]
[325384742,1714804269878,-249.98956,0.00038,7]
[325384743,1714804269888,-399.982056,0.00038,7]
[325384744,1714804269899,-399.982056,0.00038,7]
[325384745,1714804269908,-220.642998,0.00038,7]
[325384746,1714804269917,-220.642998,0.00038,7]
[325384747,1714804269927,-151.0,0.00038,7]
[325384748,1714804269936,-151.0,0.00038,7]
[325384749,1714804269946,-381.094395,0.00038,7]
[325384750,1714804269956,-172.192935,0.00038,7]
[325384751,1714804269965,-381.094395,0.00038,7]
[325384752,1714804269974,-172.192935,0.00038,7]
[325384753,1714804269983,-260.428128,0.00038,7]
[325384754,1714804269993,-260.428128,0.00038,7]
[325384755,1714804270003,-151.0,0.00038,7]
[325384756,1714804270012,-253.161467,0.00038,7]
[325384757,1714804270023,-151.0,0.00038,7]
[325384758,1714804270033,-253.161467,0.00038,7]
[325384759,1714804270043,-151.0,0.00038,7]
[325384760,1714804270052,-521.460778,0.00038,7]
[325384761,1714804270061,-521.460778,0.00038,7]
[325384762,1714804270071,-151.0,0.00038,7]
[325384763,1714804270081,-322.0,0.00038,2]
[325384764,1714804270090,-277.103866,0.00038,7]
[325384765,1714804270099,-277.103866,0.00038,7]
[325384766,1714804270109,-151.0,0.00038,7]
[325384767,1714804270118,-151.0,0.00038,7]
[325384768,1714804270128,-155.9186164,0.00038124,7]
[325384769,1714804270139,-155.53835772,0.00038139,7]
[325384770,1714804270148,-600.0,0.00038198,10]
[325384771,1714804270158,-155.53835772,0.00038201,7]
[325384772,1714804270167,-155.53835772,0.0003833,7]
[325384773,1714804270176,-155.57086237,0.0003834,7]
[325384774,1714804270186,-1160.796002,0.00038348,2]
[325384775,1714804270196,-524.9865738,0.00038348,2]
[325384776,1714804270205,-1940.03,0.00038356,14]
[325384777,1714804270215,-11187.46903,0.00038374,2]
[325384778,1714804270224,-8339.801067,0.00038374,2]
[325384779,1714804270233,-3524.1270253,0.00038374,2]
[325384780,1714804270242,-1000000.0,0.000384,2]
[325384781,1714804270252,-2201.185585,0.000384,14]
[325384782,1714804270262,-2201.185585,0.000384,14]
[325384783,1714804270272,-357.704333,0.000384,14]
[325384784,1714804270282,-357.704333,0.000384,14]
[325384785,1714804270291,-247.395308,0.000384,14]
[325384786,1714804270300,-736.838102,0.000384,14]
[325384787,1714804270310,-247.395308,0.000384,14]
[325384788,1714804270319,-291.887504,0.000384,14]
[325384789,1714804270329,-151.0,0.000384,14]
[325384790,1714804270339,-736.838102,0.000384,14]
[325384791,1714804270348,-291.887504,0.000384,14]
[325384792,1714804270358,-291.089466,0.000384,14]
[325384793,1714804270368,-291.089466,0.000384,14]
[325384794,1714804270377,-151.0,0.000384,14]
[325384795,1714804270387,-985.65007,0.000384,14]
[325384796,1714804270396,-985.65007,0.000384,14]
[325384797,1714804270405,-10000.0,0.000384,14]
[325384798,1714804270415,-10000.0,0.000384,14]
[325384799,1714804270424,-900.819523,0.000384,14]
[325384800,1714804270434,-900.819523,0.000384,14]
[325384801,1714804270444,-1308.60972,0.000384,14]
[325384802,1714804270454,-1308.60972,0.000384,14]
[325384803,1714804270464,-417.413404,0.000384,14]
[325384804,1714804270474,-304.530927,0.000384,14]
[325384805,1714804270483,-155.386923,0.000384,14]
[325384806,1714804270493,-417.413404,0.000384,14]
[325384807,1714804270503,-304.530927,0.000384,14]
[325384808,1714804270513,-926.894193,0.000384,14]
[325384809,1714804270523,-155.386923,0.000384,14]
[325384810,1714804270533,-926.894193,0.000384,14]
[325384811,1714804270543,-249.98956,0.000384,14]
[325384812,1714804270553,-249.98956,0.000384,14]
[325384813,1714804270563,-399.982056,0.000384,14]
[325384814,1714804270572,-399.982056,0.000384,14]
[325384815,1714804270582,-220.642998,0.000384,14]
[325384816,1714804270596,-220.642998,0.000384,14]
[325384817,1714804270606,-151.0,0.000384,7]
[325384818,1714804270615,-151.0,0.000384,14]
[325384819,1714804270625,-381.094395,0.000384,14]
[325384820,1714804270636,-172.192935,0.000384,14]
[325384821,1714804270646,-381.094395,0.000384,14]
[325384822,1714804270655,-172.192935,0.000384,14]
[325384823,1714804270665,-260.428128,0.000384,14]
[325384824,1714804270675,-260.428128,0.000384,14]
[325384825,1714804270685,-151.0,0.000384,14]
[325384826,1714804270694,-253.161467,0.000384,14]
[325384827,1714804270704,-151.0,0.000384,14]
[325384828,1714804270713,-253.161467,0.000384,14]
[325384829,1714804270723,-151.0,0.000384,14]
[325384830,1714804270732,-521.460778,0.000384,14]
[325384831,1714804270742,-521.460778,0.000384,14]
[325384832,1714804270751,-220.358555,0.000384,14]
[325384833,1714804270761,-277.103866,0.000384,14]
[325384834,1714804270771,-277.103866,0.000384,14]
[325384835,1714804270780,-151.0,0.000384,14]
[325384836,1714804270789,-151.0,0.000384,14]
[325384837,1714804270799,-23863.08940245,0.00038441,11]
[325384838,1714804270808,-311.71332879,0.0003862,2]
[325384839,1714804270818,-279.94872111,0.00038621,7]
[325384840,1714804270827,-189195.77430745,0.0003863,7]
[325384841,1714804270836,-214.0,0.0003872,2]
[325384842,1714804270846,-216.0,0.0003872,2]
[325384843,1714804270855,-222.0,0.0003872,2]
[325384844,1714804270865,-600.0,0.00038746,10]
[325384845,1714804270874,-500.0,0.0003878,10]
[325384846,1714804270883,-500.0,0.0003878,10]
[325384847,1714804270892,-600.0,0.0003878,10]
[325384848,1714804270903,-4242.877,0.000388,28]
[325384849,1714804270913,-708.85651146,0.000389,120]
[325384850,1714804270923,-211.0,0.000389,2]
[325384851,1714804270933,-203.0,0.000389,2]
[325384852,1714804270942,-1940.03,0.00038904,16]
[325384853,1714804270952,-1000.0,0.00038904,120]
[325384854,1714804270961,-215.69258495,0.00039,14]
[325384855,1714804270971,-945.428466,0.00039,40]
[325384856,1714804270981,-193.41428641,0.00039,10]
[325384857,1714804270991,-6931.17529622,0.00039,30]
[325384858,1714804271000,-151.4889227,0.00039,10]
[325384859,1714804271010,-155.37604653,0.00039,120]
[325384860,1714804271020,-20076.0,0.00039,5]
[325384861,1714804271030,-35023.2655048,0.00039,30]
[325384862,1714804271040,-13550.8255897,0.00039,30]
[325384863,1714804271050,-18045.36371687,0.00039,2]
[325384864,1714804271060,-152.0,0.00039039,4]
[325384865,1714804271069,-279.94872111,0.00039052,7]
[325384866,1714804271079,-2561.3886907,0.00039121,90]
[325384867,1714804271088,-155.88263549,0.00039147,7]
[325384868,1714804271098,-2210.33967639,0.00039201,5]
[325384869,1714804271108,-156.25464671,0.00039211,7]
[325384870,1714804271117,-150.74323642,0.00039271,7]
[325384871,1714804271127,-600.0,0.00039328,10]
[325384872,1714804271136,-438.42933019,0.0003939,60]
[325384873,1714804271145,-63469.41568239,0.000394,4]
[325384874,1714804271155,-151.0,0.000394,14]
[325384875,1714804271165,-283.008644,0.000394,14]
[325384876,1714804271174,-283.008644,0.000394,14]
[325384877,1714804271185,-173.766712,0.000394,14]
[325384878,1714804271194,-151.0,0.000394,14]
[325384879,1714804271203,-226.889923,0.000394,14]
[325384880,1714804271212,-226.889923,0.000394,14]
[325384881,1714804271221,-181.92438,0.000394,14]
[325384882,1714804271231,-181.92438,0.000394,14]
[325384883,1714804271240,-199.48643,0.000394,14]
[325384884,1714804271249,-199.48643,0.000394,14]
[325384885,1714804271259,-151.0,0.000394,14]
[325384886,1714804271268,-151.0,0.000394,14]
[325384887,1714804271278,-237.512164,0.000394,14]
[325384888,1714804271288,-237.512164,0.000394,14]
[325384889,1714804271297,-151.0,0.000394,14]
[325384890,1714804271307,-151.0,0.000394,14]
[325384891,1714804271316,-151.0,0.000394,14]
[325384892,1714804271326,-151.0,0.000394,14]
[325384893,1714804271336,-275.532152,0.000394,14]
[325384894,1714804271346,-275.532152,0.000394,14]
[325384895,1714804271355,-151.0,0.000394,14]
[325384896,1714804271365,-239.792775,0.000394,14]
[325384897,1714804271376,-151.0,0.000394,14]
[325384898,1714804271386,-244.904333,0.000394,14]
[325384899,1714804271396,-156.081811,0.000394,14]
[325384900,1714804271406,-156.081811,0.000394,14]
[325384901,1714804271416,-857.181644,0.000394,14]
[325384902,1714804271426,-188.512179,0.000394,14]
[325384903,1714804271436,-160.243981,0.000394,14]
[325384904,1714804271446,-914.736561,0.000394,14]
[325384905,1714804271456,-857.181644,0.000394,14]
[325384906,1714804271466,-914.736561,0.000394,14]
[325384907,1714804271475,-160.243981,0.000394,14]
[325384908,1714804271485,-241.352972,0.000394,14]
[325384909,1714804271496,-241.352972,0.000394,14]
[325384910,1714804271506,-579.799043,0.000394,14]
[325384911,1714804271516,-579.799043,0.000394,14]
[325384912,1714804271526,-251.730952,0.000394,14]
[325384913,1714804271752,-251.730952,0.000394,14]
[325384914,1714804271763,-151.0,0.000394,14]
[325384915,1714804271773,-962.957122,0.000394,14]
[325384916,1714804271782,-151.0,0.000394,14]
[325384917,1714804271792,-151.0,0.000394,14]
[325384918,1714804271802,-962.957122,0.000394,14]
[325384919,1714804271811,-204.341608,0.000394,14]
[325384920,1714804271820,-151.0,0.000394,14]
[325384921,1714804271830,-151.0,0.000394,14]
[325384922,1714804271839,-426.13724,0.000394,14]
[325384923,1714804271848,-151.0,0.000394,14]
[325384924,1714804271858,-426.13724,0.000394,14]
[325384925,1714804271867,-151.0,0.000394,14]
[325384926,1714804271877,-153.968188,0.000394,14]
[325384927,1714804271886,-153.968188,0.000394,14]
[325384928,1714804271895,-151.0,0.000394,14]
[325384929,1714804271905,-151.0,0.000394,14]
[325384930,1714804271914,-151.0,0.000394,14]
[325384931,1714804271923,-226.11928,0.000394,14]
[325384932,1714804271932,-226.11928,0.000394,14]
[325384933,1714804271941,-205.119864,0.000394,7]
[325384934,1714804271951,-205.119864,0.000394,7]
[325384935,1714804271962,-194.287871,0.000394,14]
[325384936,1714804271972,-194.287871,0.000394,14]
[325384937,1714804271981,-573.609053,0.000394,14]
[325384938,1714804271990,-573.609053,0.000394,14]
[325384939,1714804272000,-266.98703,0.000394,14]
[325384940,1714804272010,-748.969284,0.000394,14]
[325384941,1714804272022,-748.969284,0.000394,14]
[325384942,1714804272033,-270.525452,0.000394,14]
[325384943,1714804272043,-270.525452,0.000394,14]
[325384944,1714804272054,-540.317802,0.000394,14]
[325384945,1714804272064,-628.085847,0.000394,14]
[325384946,1714804272074,-540.317802,0.000394,14]
[325384947,1714804272083,-628.085847,0.000394,14]
[325384948,1714804272092,-210.991916,0.000394,14]
[325384949,1714804272101,-151.0,0.000394,14]
[325384950,1714804272111,-151.0,0.000394,14]
[325384951,1714804272120,-151.0,0.000394,14]
[325384952,1714804272129,-151.0,0.000394,14]
[325384953,1714804272139,-2511.020505,0.00039415,90]
[325384954,1714804272148,-1940.03,0.00039452,18]
[325384955,1714804272157,-155.53835772,0.00039596,7]
[325384956,1714804272167,-357.31184748,0.000397,60]
[325384957,1714804272177,-159.56,0.0003974,15]
[325384958,1714804272186,-279.94872111,0.00039791,7]
[325384959,1714804272196,-1500.0,0.000398,30]
[325384960,1714804272205,-21013.0,0.000398,10]
[325384961,1714804272214,-260.428128,0.000398,14]
[325384962,1714804272224,-260.428128,0.000398,14]
[325384963,1714804272234,-151.0,0.000398,14]
[325384964,1714804272244,-253.161467,0.000398,14]
[325384965,1714804272253,-264.5824,0.000398,14]
[325384966,1714804272262,-253.161467,0.000398,14]
[325384967,1714804272272,-151.0,0.000398,14]
[325384968,1714804272282,-521.460778,0.000398,14]
[325384969,1714804272292,-521.460778,0.000398,14]
[325384970,1714804272301,-277.103866,0.000398,14]
[325384971,1714804272311,-277.103866,0.000398,14]
[325384972,1714804272322,-151.0,0.000398,14]
[325384973,1714804272333,-151.0,0.000398,14]
[325384974,1714804272343,-600.0,0.00039842,10]
[325384975,1714804272353,-195.55,0.00039856,2]
[325384976,1714804272363,-168.82,0.00039856,2]
[325384977,1714804272372,-700.0,0.0003987,2]
[325384978,1714804272382,-400.0,0.0003987,2]
[325384979,1714804272392,-600.0,0.00039876,10]
[325384980,1714804272401,-500.0,0.00039876,10]
[325384981,1714804272411,-506.8784195,0.00039876,10]
[325384982,1714804272422,-150.0,0.00039881,120]
[325384983,1714804272431,-322.0,0.000399,2]
[325384984,1714804272441,-152.07885128,0.00039933,7]
[325384985,1714804272450,-155.53835777,0.00039961,7]
[325384986,1714804272459,-700.0,0.0003997,2]
[325384987,1714804272469,-400.0,0.0003997,2]
[325384988,1714804272479,-279.94872111,0.00039975,7]
[325384989,1714804272488,-151.0,0.00039984,2]
[325384990,1714804272497,-85293.9295448,0.00039987,31]
[325384991,1714804272507,-2201.185585,0.00039987,14]
[325384992,1714804272516,-2201.185585,0.00039987,14]
[325384993,1714804272526,-357.704333,0.00039987,14]
[325384994,1714804272536,-357.704333,0.00039987,14]
[325384995,1714804272545,-247.395308,0.00039987,14]
[325384996,1714804272555,-736.838102,0.00039987,14]
[325384997,1714804272564,-247.395308,0.00039987,14]
[325384998,1714804272575,-291.887504,0.00039987,14]
[325384999,1714804272584,-151.0,0.00039987,14]
[325385000,1714804272598,-736.838102,0.00039987,14]
[325385001,1714804272607,-291.887504,0.00039987,14]
[325385002,1714804272616,-291.089466,0.00039987,14]
[325385003,1714804272626,-291.089466,0.00039987,14]
[325385004,1714804272637,-151.0,0.00039987,14]
[325385005,1714804272647,-985.65007,0.00039987,14]
[325385006,1714804272656,-985.65007,0.00039987,14]
[325385007,1714804272666,-10000.0,0.00039987,14]
[325385008,1714804272678,-10000.0,0.00039987,14]
[325385009,1714804272688,-900.819523,0.00039987,14]
[325385010,1714804272698,-900.819523,0.00039987,14]
[325385011,1714804272707,-1308.60972,0.00039987,14]
[325385012,1714804272717,-1308.60972,0.00039987,14]
[325385013,1714804272727,-417.413404,0.00039987,14]
[325385014,1714804272738,-304.530927,0.00039987,14]
[325385015,1714804272748,-155.386923,0.00039987,14]
[325385016,1714804272758,-417.413404,0.00039987,14]
[325385017,1714804272767,-304.530927,0.00039987,14]
[325385018,1714804272776,-926.894193,0.00039987,14]
[325385019,1714804272785,-155.386923,0.00039987,14]
[325385020,1714804272795,-926.894193,0.00039987,14]
[325385021,1714804272804,-249.98956,0.00039987,14]
[325385022,1714804272813,-249.98956,0.00039987,14]
[325385023,1714804272822,-399.982056,0.00039987,14]
[325385024,1714804272831,-399.982056,0.00039987,14]
[325385025,1714804272841,-220.642998,0.00039987,14]
[325385026,1714804272850,-220.642998,0.00039987,14]
[325385027,1714804272860,-151.0,0.00039987,7]
[325385028,1714804272870,-151.0,0.00039987,14]
[325385029,1714804272879,-381.094395,0.00039987,14]
[325385030,1714804272888,-172.192935,0.00039987,14]
[325385031,1714804272897,-381.094395,0.00039987,14]
[325385032,1714804272906,-172.192935,0.00039987,14]
[325385033,1714804272916,-1446.1439,0.0004,30]
[325385034,1714804272926,-296.21706236,0.0004,120]
[325385035,1714804272935,-1500.0,0.0004,3]
[325385036,1714804272944,-22332.0,0.0004,30]
[325385037,1714804272954,-1108.68,0.0004,15]
[325385038,1714804272972,-16634.20578795,0.0004,4]
[325385039,1714804272984,-187.77550219,0.0004,4]
[325385040,1714804272994,-290.00391052,0.0004,2]
[325385041,1714804273003,-209.07671972,0.0004,2]
[325385042,1714804273012,-1256.0461386,0.0004,4]
[325385043,1714804273022,-271.64812473,0.0004,4]
[325385044,1714804273032,-300.0,0.0004,10]
[325385045,1714804273041,-708.0,0.0004,2]
[325385046,1714804273051,-900.0,0.0004,41]
[325385047,1714804273061,-5082.89,0.0004,10]
[325385048,1714804273070,-2000.0,0.0004,5]
[325385049,1714804273080,-1000.0,0.0004,7]
[325385050,1714804273089,-200.0,0.0004,30]
[325385051,1714804273099,-285.0,0.0004,30]
[325385052,1714804273109,-290.55300065,0.0004,30]
[325385053,1714804273120,-1011.0,0.0004,7]
[325385054,1714804273131,-887.45726836,0.0004,120]
[325385055,1714804273142,-2000.0,0.0004,5]
[325385056,1714804273151,-20000.0,0.0004,7]
[325385057,1714804273161,-276.69055278,0.0004,30]
[325385058,1714804273170,-1722.1597,0.0004,5]
[325385059,1714804273180,-1940.03,0.0004,20]
[325385060,1714804273190,-1033.0,0.0004,5]
[325385061,1714804273199,-685.0,0.0004,15]
[325385062,1714804273208,-2000.0,0.0004,5]
[325385063,1714804273218,-214.0,0.0004,2]
[325385064,1714804273227,-216.0,0.0004,2]
[325385065,1714804273237,-222.0,0.0004,2]
[325385066,1714804273247,-253.0,0.0004,30]
[325385067,1714804273256,-2000.0,0.0004,5]
[325385068,1714804273266,-155.58397131,0.0004,120]
[325385069,1714804273276,-262.0,0.0004,29]
[325385070,1714804273285,-150.0,0.0004,7]
[325385071,1714804273295,-150.0,0.0004,7]
[325385072,1714804273304,-150.0,0.0004,7]
[325385073,1714804273314,-150.0,0.0004,7]
[325385074,1714804273324,-155.9186164,0.00040005,30]
[325385075,1714804273334,-194.66901,0.00040088,30]
[325385076,1714804273343,-150.0,0.00040098,7]
[325385077,1714804273353,-1235.86,0.000401,20]
[325385078,1714804273363,-211.0,0.0004013,2]
[325385079,1714804273372,-203.0,0.0004013,2]
[325385080,1714804273382,-156.25464671,0.00040131,30]
[325385081,1714804273391,-150.0,0.00040196,7]
[325385082,1714804273401,-194.66901,0.00040288,30]
[325385083,1714804273410,-150.0,0.00040293,7]
[325385084,1714804273420,-150.0,0.00040375,7]
[325385085,1714804273429,-150.0,0.00040391,7]
[325385086,1714804273439,-600.0,0.00040424,10]
[325385087,1714804273449,-194.66901,0.00040488,30]
[325385088,1714804273458,-150.0,0.00040489,7]
[325385089,1714804273468,-262.0,0.000405,30]
[325385090,1714804273477,-1940.03,0.00040547,22]
[325385091,1714804273486,-156.25464671,0.00040549,30]
[325385092,1714804273496,-155.00516971,0.00040584,30]
[325385093,1714804273506,-150.0,0.00040587,7]
[325385094,1714804273515,-154.62351651,0.00040647,30]
[325385095,1714804273525,-150.0,0.00040685,7]
[325385096,1714804273535,-194.66901,0.00040688,30]
[325385097,1714804273544,-279.94872111,0.00040692,30]
[325385098,1714804273554,-156.25464671,0.00040706,30]
[325385099,1714804273564,-500.0,0.0004077,30]
[325385100,1714804273573,-500.0,0.0004077,30]
[325385101,1714804273583,-500.0,0.0004077,30]
[325385102,1714804273593,-155.88263549,0.00040781,30]
[325385103,1714804273606,-150.0,0.00040783,7]
[325385104,1714804273615,-1105.6,0.000408,18]
[325385105,1714804273624,-156.25464671,0.00040809,30]
[325385106,1714804273635,-279.94872111,0.00040851,30]
[325385107,1714804273646,-150.0,0.0004088,7]
[325385108,1714804273657,-767.719267,0.000409,2]
[325385109,1714804273667,-150.0,0.000409,7]
[325385110,1714804273701,-600.0,0.00040938,10]
[325385111,1714804273722,-600.0,0.00040972,10]
[325385112,1714804273737,-507.50472434,0.00040972,10]
[325385113,1714804273754,-150.0,0.00040978,7]
[325385114,1714804273773,-408.86428641,0.00040993,120]
[325385115,1714804273789,-23863.08940245,0.00040995,15]
[325385116,1714804273809,-155.88263549,0.00040996,30]
[325385117,1714804273828,-50000.0,0.00041,21]
[325385118,1714804273847,-50000.0,0.00041,31]
[325385119,1714804273863,-405.03036283,0.00041,30]
[325385120,1714804273876,-344661.95710051,0.00041,15]
[325385121,1714804273891,-11747.5223248,0.00041,20]
[325385122,1714804273910,-900.0,0.00041,42]
[325385123,1714804273926,-1083.68,0.00041,21]
[325385124,1714804273944,-1158.6,0.00041,25]
[325385125,1714804273966,-20000.0,0.00041,10]
[325385126,1714804273977,-839.54,0.00041,120]
[325385127,1714804273991,-262.0,0.00041,30]
[325385128,1714804274007,-151.0,0.00041,14]
[325385129,1714804274021,-283.008644,0.00041,14]
[325385130,1714804274035,-283.008644,0.00041,14]
[325385131,1714804274050,-151.0,0.00041,14]
[325385132,1714804274065,-226.889923,0.00041,14]
[325385133,1714804274079,-226.889923,0.00041,14]
[325385134,1714804274093,-181.92438,0.00041,14]
[325385135,1714804274109,-181.92438,0.00041,14]
[325385136,1714804274125,-199.48643,0.00041,14]
[325385137,1714804274142,-199.48643,0.00041,14]
[325385138,1714804274158,-151.0,0.00041,14]
[325385139,1714804274173,-151.0,0.00041,14]
[325385140,1714804274189,-237.512164,0.00041,14]
[325385141,1714804274202,-237.512164,0.00041,14]
[325385142,1714804274216,-151.0,0.00041,14]
[325385143,1714804274229,-151.0,0.00041,14]
[325385144,1714804274242,-151.0,0.00041,14]
[325385145,1714804274256,-151.0,0.00041,14]
[325385146,1714804274268,-275.532152,0.00041,14]
[325385147,1714804274282,-275.532152,0.00041,14]
[325385148,1714804274296,-151.0,0.00041,14]
[325385149,1714804274309,-151.0,0.00041,14]
[325385150,1714804274323,-244.904333,0.00041,14]
[325385151,1714804274334,-156.081811,0.00041,14]
[325385152,1714804274348,-156.081811,0.00041,14]
[325385153,1714804274362,-857.181644,0.00041,14]
[325385154,1714804274375,-160.243981,0.00041,14]
[325385155,1714804274390,-914.736561,0.00041,14]
[325385156,1714804274403,-857.181644,0.00041,14]
[325385157,1714804274416,-914.736561,0.00041,14]
[325385158,1714804274429,-160.243981,0.00041,14]
[325385159,1714804274443,-241.352972,0.00041,14]
[325385160,1714804274456,-241.352972,0.00041,14]
[325385161,1714804274468,-579.799043,0.00041,14]
[325385162,1714804274482,-579.799043,0.00041,14]
[325385163,1714804274495,-251.730952,0.00041,14]
[325385164,1714804274507,-251.730952,0.00041,14]
[325385165,1714804274521,-153.580035,0.00041,14]
[325385166,1714804274535,-962.957122,0.00041,14]
[325385167,1714804274548,-151.0,0.00041,14]
[325385168,1714804274561,-193.184211,0.00041,14]
[325385169,1714804274574,-962.957122,0.00041,14]
[325385170,1714804274588,-151.0,0.00041,14]
[325385171,1714804274604,-292.753575,0.00041,14]
[325385172,1714804274617,-426.13724,0.00041,14]
[325385173,1714804274631,-151.0,0.00041,14]
[325385174,1714804274644,-426.13724,0.00041,14]
[325385175,1714804274658,-151.0,0.00041,14]
[325385176,1714804274672,-153.968188,0.00041,14]
[325385177,1714804274686,-153.968188,0.00041,14]
[325385178,1714804274700,-151.0,0.00041,14]
[325385179,1714804274713,-151.0,0.00041,14]
[325385180,1714804274727,-151.0,0.00041,14]
[325385181,1714804274741,-226.11928,0.00041,14]
[325385182,1714804274754,-226.11928,0.00041,14]
[325385183,1714804274769,-205.119864,0.00041,7]
[325385184,1714804274782,-205.119864,0.00041,7]
[325385185,1714804274795,-194.287871,0.00041,14]
[325385186,1714804274832,-194.287871,0.00041,14]
[325385187,1714804274853,-573.609053,0.00041,14]
[325385188,1714804274873,-573.609053,0.00041,14]
[325385189,1714804274892,-748.969284,0.00041,14]
[325385190,1714804274911,-748.969284,0.00041,14]
[325385191,1714804274927,-270.525452,0.00041,14]
[325385192,1714804274944,-270.525452,0.00041,14]
[325385193,1714804274963,-540.317802,0.00041,14]
[325385194,1714804274979,-628.085847,0.00041,14]
[325385195,1714804274995,-540.317802,0.00041,14]
[325385196,1714804275014,-628.085847,0.00041,14]
[325385197,1714804275032,-151.0,0.00041,14]
[325385198,1714804275049,-151.0,0.00041,14]
[325385199,1714804275065,-151.0,0.00041,14]
[325385200,1714804275081,-2201.185585,0.00041,14]
[325385201,1714804275096,-151.0,0.00041,14]
[325385202,1714804275111,-2201.185585,0.00041,14]
[325385203,1714804275125,-357.704333,0.00041,14]
[325385204,1714804275140,-357.704333,0.00041,14]
[325385205,1714804275153,-247.395308,0.00041,14]
[325385206,1714804275167,-736.838102,0.00041,14]
[325385207,1714804275181,-247.395308,0.00041,14]